lending/lending_fUSD_20250913
["ID","MTS","AMOUNT","RATE_DAILY","PERIOD"]
[385272068,1757723433781,-500.0,0.00030867,5]
[385272069,1757723433790,-500.0,0.00030867,5]
[385272070,1757723433800,-500.0,0.00030867,5]
[385272071,1757723433816,-500.31141004,0.00030867,5]
[385272072,1757723433826,-604.12712904,0.00030867,5]
[385272073,1757723433835,-200.0,0.00030867,5]
[385272074,1757723433845,-500.0,0.00030867,5]
[385272075,1757723433854,-287.77344899,0.00030867,5]
[385272076,1757723433865,-500.0,0.0003088,7]
[385272077,1757723433875,-150.0,0.0003088,7]
[385272078,1757723433884,-500.0,0.0003088,7]
[385272079,1757723433893,-500.0,0.0003088,7]
[385272080,1757723433904,-150.0,0.0003088,7]
[385272081,1757723433914,-150.0,0.0003088,7]
[385272082,1757723433923,-150.0,0.00031107,2]
[385272083,1757723433933,-150.0,0.00031107,2]
[385272084,1757723433943,-150.0,0.00031107,2]
[385272085,1757723433952,-500.0,0.00031107,2]
[385272086,1757723433962,-500.0,0.00031107,2]
[385272087,1757723433972,-539.0,0.00031107,2]
[385272088,1757723433982,-150.0,0.00031107,2]
[385272089,1757723433991,-500.0,0.00031107,2]
[385272090,1757723434000,-150.0,0.00031107,2]
[385272091,1757723434010,-150.0,0.00031107,2]
[385272092,1757723434019,-150.0,0.00031107,2]
[385272093,1757723434029,-152.09,0.00031107,2]
[385272094,1757723434039,-1336.808,0.00031121,28]
[385272095,1757723434048,-500.0,0.00031154,7]
[385272096,1757723434059,-150.0,0.00031154,7]
[385272097,1757723434068,-500.0,0.00031154,7]
[385272098,1757723434078,-418.19,0.00031154,7]
[385272099,1757723434088,-150.0,0.00031154,7]
[385272100,1757723434098,-216.02713408,0.00031154,7]
[385272101,1757723434107,-500.0,0.0003124,7]
[385272102,1757723434119,-600.0,0.00031272,7]
[385272103,1757723434129,-150.0,0.00031381,2]
[385272104,1757723434139,-150.0,0.00031381,2]
[385272105,1757723434148,-500.0,0.00031381,2]
[385272106,1757723434158,-500.0,0.00031381,2]
[385272107,1757723434169,-539.0,0.00031381,2]
[385272108,1757723434178,-200.0,0.00031381,2]
[385272109,1757723434187,-500.0,0.00031381,2]
[385272110,1757723434197,-262.05728098,0.00031381,2]
[385272111,1757723434206,-150.0,0.00031381,2]
[385272112,1757723434216,-150.0,0.00031381,2]
[385272113,1757723434225,-1000.0,0.00031415,5]
[385272114,1757723434234,-500.0,0.00031415,5]
[385272115,1757723434244,-501.50626669,0.00031415,5]
[385272116,1757723434253,-1000.0,0.00031415,5]
[385272117,1757723434263,-500.0,0.00031428,7]
[385272118,1757723434273,-200.0,0.00031428,7]
[385272119,1757723434282,-500.0,0.00031428,7]
[385272120,1757723434291,-150.0,0.00031428,7]
[385272121,1757723434300,-500.0,0.00031491,7]
[385272122,1757723434309,-501.95293294,0.00031575,5]
[385272123,1757723434318,-500.0,0.00031575,5]
[385272124,1757723434327,-500.0,0.00031575,5]
[385272125,1757723434336,-155.05164078,0.00031655,2]
[385272126,1757723434346,-150.0,0.00031655,2]
[385272127,1757723434355,-500.0,0.00031655,2]
[385272128,1757723434365,-500.0,0.00031655,2]
[385272129,1757723434374,-539.0,0.00031655,2]
[385272130,1757723434384,-500.0,0.00031655,2]
[385272131,1757723434394,-150.0,0.00031655,2]
[385272132,1757723434403,-200.0,0.00031655,2]
[385272133,1757723434412,-500.0,0.00031702,7]
[385272134,1757723434422,-500.0,0.00031702,7]
[385272135,1757723434431,-200.0,0.00031702,7]
[385272136,1757723434440,-500.0,0.0003174,7]
[385272137,1757723434450,-1470.92184545,0.0003191,2]
[385272138,1757723434459,-150.0,0.00031929,2]
[385272139,1757723434468,-311.0,0.00031929,2]
[385272140,1757723434478,-539.0,0.00031929,2]
[385272141,1757723434487,-500.0,0.00031929,2]
[385272142,1757723434497,-172.17296631,0.00031929,2]
[385272143,1757723434506,-1500.0,0.00031963,5]
[385272144,1757723434515,-1500.0,0.00031963,5]
[385272145,1757723434525,-500.0,0.00031976,7]
[385272146,1757723434535,-500.0,0.00032036,7]
[385272147,1757723434544,-500.0,0.0003206,7]
[385272148,1757723434553,-502.39027523,0.00032123,5]
[385272149,1757723434563,-1000.0,0.00032123,5]
[385272150,1757723434572,-500.0,0.00032135,7]
[385272151,1757723434581,-250.0,0.00032203,2]
[385272152,1757723434591,-539.0,0.00032203,2]
[385272153,1757723434599,-500.0,0.00032203,2]
[385272154,1757723434609,-204.939832,0.00032203,7]
[385272155,1757723434619,-204.939832,0.00032203,7]
[385272156,1757723434628,-204.939832,0.00032203,7]
[385272157,1757723434638,-2166.693729,0.00032203,7]
[385272158,1757723434647,-204.939832,0.00032203,7]
[385272159,1757723434656,-259.137886,0.00032203,7]
[385272160,1757723434665,-2166.693729,0.00032203,7]
[385272161,1757723434675,-259.137886,0.00032203,7]
[385272162,1757723434684,-151.0,0.00032203,7]
[385272163,1757723434693,-2166.693729,0.00032203,7]
[385272164,1757723434702,-151.0,0.00032203,7]
[385272165,1757723434711,-2166.693729,0.00032203,7]
[385272166,1757723434720,-151.0,0.00032203,7]
[385272167,1757723434729,-151.0,0.00032203,7]
[385272168,1757723434739,-151.0,0.00032203,7]
[385272169,1757723434747,-284.91302,0.00032203,7]
[385272170,1757723434757,-151.0,0.00032203,7]
[385272171,1757723434766,-151.0,0.00032203,7]
[385272172,1757723434775,-259.137886,0.00032203,7]
[385272173,1757723434785,-151.0,0.00032203,7]
[385272174,1757723434794,-259.137886,0.00032203,7]
[385272175,1757723434803,-151.0,0.00032203,7]
[385272176,1757723434816,-160.011904,0.00032203,7]
[385272177,1757723434825,-151.0,0.00032203,7]
[385272178,1757723434834,-151.0,0.00032203,7]
[385272179,1757723434843,-160.011904,0.00032203,7]
[385272180,1757723434853,-151.0,0.00032203,7]
[385272181,1757723434863,-151.0,0.00032203,7]
[385272182,1757723434874,-285.954583,0.00032203,7]
[385272183,1757723434894,-160.011904,0.00032203,7]
[385272184,1757723434904,-160.011904,0.00032203,7]
[385272185,1757723434918,-398.549807,0.00032203,7]
[385272186,1757723434927,-398.549807,0.00032203,7]
[385272187,1757723434937,-398.549807,0.00032203,7]
[385272188,1757723434946,-151.0,0.00032203,7]
[385272189,1757723434956,-398.549807,0.00032203,7]
[385272190,1757723434965,-151.0,0.00032203,7]
[385272191,1757723434974,-151.0,0.00032203,7]
[385272192,1757723434984,-468.638738,0.00032203,7]
[385272193,1757723434993,-151.0,0.00032203,7]
[385272194,1757723435002,-468.638738,0.00032203,7]
[385272195,1757723435011,-151.0,0.00032203,7]
[385272196,1757723435020,-468.638738,0.00032203,7]
[385272197,1757723435029,-468.638738,0.00032203,7]
[385272198,1757723435039,-151.0,0.00032203,7]
[385272199,1757723435047,-151.0,0.00032203,7]
[385272200,1757723435057,-151.0,0.00032203,7]
[385272201,1757723435066,-151.0,0.00032203,7]
[385272202,1757723435075,-1259.0,0.0003222,2]
[385272203,1757723435084,-4167.0,0.0003222,2]
[385272204,1757723435093,-2037.0,0.0003222,2]
[385272205,1757723435281,-600.0,0.00032246,7]
[385272206,1757723435291,-500.0,0.0003225,7]
[385272207,1757723435301,-500.0,0.00032401,7]
[385272208,1757723435310,-539.0,0.00032477,2]
[385272209,1757723435319,-500.0,0.00032511,5]
[385272210,1757723435329,-500.0,0.00032511,5]
[385272211,1757723435338,-500.0,0.00032524,7]
[385272212,1757723435347,-152.09,0.00032663,2]
[385272213,1757723435357,-1297.24942313,0.00032671,5]
[385272214,1757723435367,-539.0,0.00032751,2]
[385272215,1757723435376,-600.0,0.00032767,7]
[385272216,1757723435386,-500.0,0.00032798,7]
[385272217,1757723435395,-539.0,0.00033025,2]
[385272218,1757723435404,-500.0,0.00033072,7]
[385272219,1757723435413,-1000.0,0.00033102,2]
[385272220,1757723435422,-206.19,0.00033165,2]
[385272221,1757723435431,-590.0,0.00033212,2]
[385272222,1757723435440,-539.0,0.00033299,2]
[385272223,1757723435450,-500.0,0.00033346,7]
[385272224,1757723435459,-170.87409771,0.00033371,2]
[385272225,1757723435468,-600.0,0.00033467,7]
[385272226,1757723435477,-590.0,0.00033486,2]
[385272227,1757723435486,-539.0,0.00033573,2]
[385272228,1757723435495,-790.0,0.000336,2]
[385272229,1757723435504,-3058.0,0.000336,2]
[385272230,1757723435514,-500.0,0.0003362,7]
[385272231,1757723435523,-151.0,0.00033678,7]
[385272232,1757723435533,-150.0,0.00033735,7]
[385272233,1757723435542,-471.6,0.00033798,2]
[385272234,1757723435551,-471.6,0.00033798,2]
[385272235,1757723435561,-152.0,0.00033803,3]
[385272236,1757723435570,-539.0,0.00033847,2]
[385272237,1757723435580,-1470.92184545,0.00033892,2]
[385272238,1757723435589,-311.560851,0.00033892,7]
[385272239,1757723435598,-311.560851,0.00033892,7]
[385272240,1757723435607,-151.0,0.00033892,7]
[385272241,1757723435618,-311.560851,0.00033892,7]
[385272242,1757723435627,-311.560851,0.00033892,7]
[385272243,1757723435636,-498.42247,0.00033892,7]
[385272244,1757723435645,-151.0,0.00033892,7]
[385272245,1757723435655,-498.42247,0.00033892,7]
[385272246,1757723435664,-151.0,0.00033892,7]
[385272247,1757723435674,-498.42247,0.00033892,7]
[385272248,1757723435683,-151.0,0.00033892,7]
[385272249,1757723435691,-623.919572,0.00033892,7]
[385272250,1757723435700,-151.0,0.00033892,7]
[385272251,1757723435710,-151.0,0.00033892,7]
[385272252,1757723435719,-151.0,0.00033892,7]
[385272253,1757723435729,-498.42247,0.00033892,7]
[385272254,1757723435738,-623.919572,0.00033892,7]
[385272255,1757723435747,-151.0,0.00033892,7]
[385272256,1757723435756,-151.0,0.00033892,7]
[385272257,1757723435765,-623.919572,0.00033892,7]
[385272258,1757723435774,-450.705234,0.00033892,7]
[385272259,1757723435783,-623.919572,0.00033892,7]
[385272260,1757723435792,-450.705234,0.00033892,7]
[385272261,1757723435801,-450.705234,0.00033892,7]
[385272262,1757723435813,-151.0,0.00033892,7]
[385272263,1757723435823,-151.0,0.00033892,7]
[385272264,1757723435832,-450.705234,0.00033892,7]
[385272265,1757723435841,-151.0,0.00033892,7]
[385272266,1757723435851,-151.0,0.00033892,7]
[385272267,1757723435860,-171.940338,0.00033892,7]
[385272268,1757723435869,-217.754737,0.00033892,7]
[385272269,1757723435882,-151.0,0.00033892,7]
[385272270,1757723435892,-217.754737,0.00033892,7]
[385272271,1757723435901,-151.0,0.00033892,7]
[385272272,1757723435910,-217.754737,0.00033892,7]
[385272273,1757723435919,-151.0,0.00033892,7]
[385272274,1757723435928,-151.0,0.00033892,7]
[385272275,1757723435938,-217.754737,0.00033892,7]
[385272276,1757723435947,-151.362244,0.00033892,7]
[385272277,1757723435956,-151.329609,0.00033892,7]
[385272278,1757723435965,-151.329609,0.00033892,7]
[385272279,1757723435977,-151.0,0.00033892,7]
[385272280,1757723435987,-458.882394,0.00033892,7]
[385272281,1757723435999,-151.329609,0.00033892,7]
[385272282,1757723436008,-458.882394,0.00033892,7]
[385272283,1757723436018,-151.329609,0.00033892,7]
[385272284,1757723436027,-458.882394,0.00033892,7]
[385272285,1757723436037,-458.882394,0.00033892,7]
[385272286,1757723436048,-280.82061,0.00033892,7]
[385272287,1757723436058,-280.82061,0.00033892,7]
[385272288,1757723436067,-280.82061,0.00033892,7]
[385272289,1757723436076,-280.82061,0.00033892,7]
[385272290,1757723436086,-500.0,0.00033894,7]
[385272291,1757723436095,-1900.0,0.000339,12]
[385272292,1757723436104,-1333.47710115,0.00033949,2]
[385272293,1757723436113,-200.0,0.00034,30]
[385272294,1757723436123,-1158.49,0.00034007,2]
[385272295,1757723436133,-1190.97,0.00034007,2]
[385272296,1757723436142,-1314.0,0.00034023,2]
[385272297,1757723436152,-171.34,0.00034056,2]
[385272298,1757723436162,-539.0,0.00034121,2]
[385272299,1757723436171,-151.0,0.00034126,7]
[385272300,1757723436181,-6038.47501825,0.00034128,2]
[385272301,1757723436190,-578.043,0.00034129,2]
[385272302,1757723436199,-612.831,0.00034129,2]
[385272303,1757723436210,-1579.0,0.00034129,2]
[385272304,1757723436221,-1327.6,0.00034129,2]
[385272305,1757723436231,-812.0,0.00034129,2]
[385272306,1757723436241,-1177.0,0.00034129,2]
[385272307,1757723436251,-897.0,0.00034129,2]
[385272308,1757723436260,-151.0,0.00034129,7]
[385272309,1757723436269,-151.0,0.00034129,7]
[385272310,1757723436278,-151.0,0.00034129,7]
[385272311,1757723436287,-151.0,0.00034129,7]
[385272312,1757723436296,-518.03617,0.00034129,7]
[385272313,1757723436305,-151.0,0.00034129,7]
[385272314,1757723436314,-151.0,0.00034129,7]
[385272315,1757723436325,-518.03617,0.00034129,7]
[385272316,1757723436335,-151.0,0.00034129,7]
[385272317,1757723436345,-518.03617,0.00034129,7]
[385272318,1757723436354,-151.0,0.00034129,7]
[385272319,1757723436363,-151.0,0.00034129,7]
[385272320,1757723436373,-518.03617,0.00034129,7]
[385272321,1757723436382,-620.928135,0.00034129,7]
[385272322,1757723436391,-151.0,0.00034129,7]
[385272323,1757723436400,-620.928135,0.00034129,7]
[385272324,1757723436409,-151.0,0.00034129,7]
[385272325,1757723436418,-151.0,0.00034129,7]
[385272326,1757723436427,-620.928135,0.00034129,7]
[385272327,1757723436436,-235.566277,0.00034129,7]
[385272328,1757723436446,-620.928135,0.00034129,7]
[385272329,1757723436455,-227.431753,0.00034129,7]
[385272330,1757723436464,-378.821244,0.00034129,7]
[385272331,1757723436473,-378.821244,0.00034129,7]
[385272332,1757723436482,-378.821244,0.00034129,7]
[385272333,1757723436492,-378.821244,0.00034129,7]
[385272334,1757723436501,-345.384404,0.00034129,7]
[385272335,1757723436510,-345.384404,0.00034129,7]
[385272336,1757723436519,-151.0,0.00034129,7]
[385272337,1757723436528,-345.384404,0.00034129,7]
[385272338,1757723436537,-151.0,0.00034129,7]
[385272339,1757723436546,-345.384404,0.00034129,7]
[385272340,1757723436555,-151.0,0.00034129,7]
[385272341,1757723436565,-151.0,0.00034129,7]
[385272342,1757723436574,-151.0,0.00034129,7]
[385272343,1757723436583,-151.0,0.00034129,7]
[385272344,1757723436593,-151.0,0.00034129,7]
[385272345,1757723436602,-151.0,0.00034129,7]
[385272346,1757723436613,-151.0,0.00034129,7]
[385272347,1757723436622,-151.0,0.00034129,7]
[385272348,1757723436631,-151.0,0.00034129,7]
[385272349,1757723436641,-187.854884,0.00034129,7]
[385272350,1757723436650,-187.854884,0.00034129,7]
[385272351,1757723436660,-187.854884,0.00034129,7]
[385272352,1757723436669,-187.854884,0.00034129,7]
[385272353,1757723436679,-187.854884,0.00034129,7]
[385272354,1757723436688,-169.85914,0.00034129,7]
[385272355,1757723436697,-187.854884,0.00034129,7]
[385272356,1757723436707,-169.85914,0.00034129,7]
[385272357,1757723436716,-169.85914,0.00034129,7]
[385272358,1757723436727,-187.854884,0.00034129,7]
[385272359,1757723436737,-169.85914,0.00034129,7]
[385272360,1757723436746,-187.854884,0.00034129,7]
[385272361,1757723436756,-169.85914,0.00034129,7]
[385272362,1757723436765,-169.85914,0.00034129,7]
[385272363,1757723436775,-151.0,0.00034129,7]
[385272364,1757723436784,-151.0,0.00034129,7]
[385272365,1757723436793,-151.0,0.00034129,7]
[385272366,1757723436802,-151.0,0.00034129,7]
[385272367,1757723436815,-169.85914,0.00034129,7]
[385272368,1757723436824,-151.0,0.00034129,7]
[385272369,1757723436835,-169.85914,0.00034129,7]
[385272370,1757723436844,-151.0,0.00034129,7]
[385272371,1757723436854,-151.0,0.00034129,7]
[385272372,1757723436864,-151.0,0.00034129,7]
[385272373,1757723436873,-151.0,0.00034129,7]
[385272374,1757723436883,-151.0,0.00034129,7]
[385272375,1757723436892,-151.0,0.00034129,7]
[385272376,1757723436901,-171.600278,0.00034129,7]
[385272377,1757723436911,-171.600278,0.00034129,7]
[385272378,1757723436920,-222.00915,0.00034129,7]
[385272379,1757723436931,-222.00915,0.00034129,7]
[385272380,1757723436942,-171.600278,0.00034129,7]
[385272381,1757723436953,-171.600278,0.00034129,7]
[385272382,1757723436962,-171.600278,0.00034129,7]
[385272383,1757723436974,-2961.747543,0.00034129,7]
[385272384,1757723436984,-171.600278,0.00034129,7]
[385272385,1757723436995,-2961.747543,0.00034129,7]
[385272386,1757723437005,-2961.747543,0.00034129,7]
[385272387,1757723437015,-2961.747543,0.00034129,7]
[385272388,1757723437026,-171.600278,0.00034129,7]
[385272389,1757723437034,-171.600278,0.00034129,7]
[385272390,1757723437045,-2961.747543,0.00034129,7]
[385272391,1757723437055,-151.0,0.00034129,7]
[385272392,1757723437064,-2030.51599155,0.00034129,7]
[385272401,1757723437896,-931.23155145,0.00034129,7]
[385272402,1757723437907,-151.0,0.00034129,7]
[385272403,1757723437916,-46.4254947,0.00034129,7]
[385272404,1757723437935,-104.5745053,0.00034129,7]
[385272405,1757723437945,-758.22092384,0.00034129,7]
[385272406,1757723437956,-2203.52661916,0.00034129,7]
[385272407,1757723437965,-222.00915,0.00034129,7]
[385272408,1757723437975,-151.0,0.00034129,7]
[385272409,1757723437984,-2961.747543,0.00034129,7]
[385272410,1757723437993,-222.00915,0.00034129,7]
[385272411,1757723438002,-151.0,0.00034129,7]
[385272412,1757723438011,-222.00915,0.00034129,7]
[385272413,1757723438021,-151.0,0.00034129,7]
[385272414,1757723438030,-222.00915,0.00034129,7]
[385272415,1757723438039,-151.0,0.00034129,7]
[385272416,1757723438048,-222.00915,0.00034129,7]
[385272417,1757723438057,-151.0,0.00034129,7]
[385272418,1757723438066,-222.00915,0.00034129,7]
[385272419,1757723438075,-151.0,0.00034129,7]
[385272420,1757723438085,-151.0,0.00034129,7]
[385272421,1757723438095,-310.636726,0.00034129,7]
[385272422,1757723438104,-310.636726,0.00034129,7]
[385272423,1757723438113,-310.636726,0.00034129,7]
[385272424,1757723438123,-310.636726,0.00034129,7]
[385272425,1757723438132,-310.636726,0.00034129,7]
[385272426,1757723438142,-310.636726,0.00034129,7]
[385272427,1757723438151,-310.636726,0.00034129,7]
[385272428,1757723438161,-310.636726,0.00034129,7]
[385272429,1757723438170,-311.560851,0.00034129,7]
[385272430,1757723438179,-311.560851,0.00034129,7]
[385272431,1757723438188,-311.560851,0.00034129,7]
[385272432,1757723438198,-311.560851,0.00034129,7]
[385272433,1757723438207,-151.0,0.00034129,7]
[385272434,1757723438216,-151.0,0.00034129,7]
[385272435,1757723438225,-311.560851,0.00034129,7]
[385272436,1757723438234,-311.560851,0.00034129,7]
[385272437,1757723438243,-311.560851,0.00034129,7]
[385272438,1757723438252,-311.560851,0.00034129,7]
[385272439,1757723438262,-498.42247,0.00034129,7]
[385272440,1757723438271,-268.28535774,0.00034129,7]
[385272441,1757723438284,-230.13711226,0.00034129,7]
[385272442,1757723438293,-151.0,0.00034129,7]
[385272443,1757723438302,-151.0,0.00034129,7]
[385272444,1757723438311,-498.42247,0.00034129,7]
[385272445,1757723438321,-422.24158662,0.00034129,7]
[385272446,1757723438332,-76.18088338,0.00034129,7]
[385272447,1757723438341,-151.0,0.00034129,7]
[385272448,1757723438350,-151.0,0.00034129,7]
[385272449,1757723438359,-239.38698759,0.00034129,7]
[385272450,1757723438382,-259.03548241,0.00034129,7]
[385272451,1757723438391,-151.0,0.00034129,7]
[385272452,1757723438401,-623.919572,0.00034129,7]
[385272453,1757723438410,-498.42247,0.00034129,7]
[385272454,1757723438419,-151.0,0.00034129,7]
[385272455,1757723438429,-623.919572,0.00034129,7]
[385272456,1757723438439,-151.0,0.00034129,7]
[385272457,1757723438450,-151.0,0.00034129,7]
[385272458,1757723438459,-151.0,0.00034129,7]
[385272459,1757723438469,-151.0,0.00034129,7]
[385272460,1757723438479,-151.0,0.00034129,7]
[385272461,1757723438488,-151.0,0.00034129,7]
[385272462,1757723438498,-623.919572,0.00034129,7]
[385272463,1757723438507,-623.919572,0.00034129,7]
[385272464,1757723438516,-151.0,0.00034129,7]
[385272465,1757723438525,-151.0,0.00034129,7]
[385272466,1757723438535,-151.0,0.00034129,7]
[385272467,1757723438544,-151.0,0.00034129,7]
[385272468,1757723438553,-623.919572,0.00034129,7]
[385272469,1757723438563,-623.919572,0.00034129,7]
[385272470,1757723438572,-498.42247,0.00034129,7]
[385272471,1757723438581,-498.42247,0.00034129,7]
[385272472,1757723438591,-450.705234,0.00034129,7]
[385272473,1757723438600,-450.705234,0.00034129,7]
[385272474,1757723438609,-623.919572,0.00034129,7]
[385272475,1757723438619,-623.919572,0.00034129,7]
[385272476,1757723438629,-450.705234,0.00034129,7]
[385272477,1757723438637,-450.705234,0.00034129,7]
[385272478,1757723438646,-450.705234,0.00034129,7]
[385272479,1757723438656,-450.705234,0.00034129,7]
[385272480,1757723438665,-151.0,0.00034129,7]
[385272481,1757723438674,-151.0,0.00034129,7]
[385272482,1757723438683,-151.0,0.00034129,7]
[385272483,1757723438692,-450.705234,0.00034129,7]
[385272484,1757723438701,-151.0,0.00034129,7]
[385272485,1757723438710,-450.705234,0.00034129,7]
[385272486,1757723438720,-151.0,0.00034129,7]
[385272487,1757723438729,-151.0,0.00034129,7]
[385272488,1757723438739,-151.0,0.00034129,7]
[385272489,1757723438750,-151.0,0.00034129,7]
[385272490,1757723438759,-182.556583,0.00034129,7]
[385272491,1757723438770,-217.754737,0.00034129,7]
[385272492,1757723438779,-217.754737,0.00034129,7]
[385272493,1757723438788,-217.754737,0.00034129,7]
[385272494,1757723438797,-151.0,0.00034129,7]
[385272495,1757723438809,-217.754737,0.00034129,7]
[385272496,1757723438819,-151.0,0.00034129,7]
[385272497,1757723438829,-217.754737,0.00034129,7]
[385272498,1757723438839,-151.0,0.00034129,7]
[385272499,1757723438848,-217.754737,0.00034129,7]
[385272500,1757723438858,-151.0,0.00034129,7]
[385272501,1757723438867,-151.0,0.00034129,7]
[385272502,1757723438877,-151.0,0.00034129,7]
[385272503,1757723438887,-217.754737,0.00034129,7]
[385272504,1757723438897,-217.754737,0.00034129,7]
[385272505,1757723438906,-151.329609,0.00034129,7]
[385272506,1757723438915,-151.329609,0.00034129,7]
[385272507,1757723438924,-151.329609,0.00034129,7]
[385272508,1757723438934,-151.329609,0.00034129,7]
[385272509,1757723438943,-151.0,0.00034129,7]
[385272510,1757723438952,-151.0,0.00034129,7]
[385272511,1757723438961,-458.882394,0.00034129,7]
[385272512,1757723438971,-151.329609,0.00034129,7]
[385272513,1757723438980,-458.882394,0.00034129,7]
[385272514,1757723438989,-151.329609,0.00034129,7]
[385272515,1757723438999,-458.882394,0.00034129,7]
[385272516,1757723439008,-458.882394,0.00034129,7]
[385272517,1757723439017,-151.329609,0.00034129,7]
[385272518,1757723439026,-151.329609,0.00034129,7]
[385272519,1757723439036,-458.882394,0.00034129,7]
[385272520,1757723439045,-458.882394,0.00034129,7]
[385272521,1757723439054,-458.882394,0.00034129,7]
[385272522,1757723439063,-458.882394,0.00034129,7]
[385272523,1757723439072,-280.82061,0.00034129,7]
[385272524,1757723439081,-280.82061,0.00034129,7]
[385272525,1757723439090,-280.82061,0.00034129,7]
[385272526,1757723439099,-280.82061,0.00034129,7]
[385272527,1757723439108,-280.82061,0.00034129,7]
[385272528,1757723439117,-280.82061,0.00034129,7]
[385272529,1757723439127,-204.939832,0.00034129,7]
[385272530,1757723439136,-280.82061,0.00034129,7]
[385272531,1757723439145,-204.939832,0.00034129,7]
[385272532,1757723439154,-280.82061,0.00034129,7]
[385272533,1757723439163,-204.939832,0.00034129,7]
[385272534,1757723439172,-204.939832,0.00034129,7]
[385272535,1757723439182,-204.939832,0.00034129,7]
[385272536,1757723439191,-204.939832,0.00034129,7]
[385272537,1757723439200,-2166.693729,0.00034129,7]
[385272538,1757723439209,-2166.693729,0.00034129,7]
[385272539,1757723439218,-204.939832,0.00034129,7]
[385272540,1757723439229,-259.137886,0.00034129,7]
[385272541,1757723439238,-2166.693729,0.00034129,7]
[385272542,1757723439247,-204.939832,0.00034129,7]
[385272543,1757723439256,-259.137886,0.00034129,7]
[385272544,1757723439266,-259.137886,0.00034129,7]
[385272545,1757723439275,-2166.693729,0.00034129,7]
[385272546,1757723439284,-2166.693729,0.00034129,7]
[385272547,1757723439294,-259.137886,0.00034129,7]
[385272548,1757723439303,-2166.693729,0.00034129,7]
[385272549,1757723439312,-259.137886,0.00034129,7]
[385272550,1757723439323,-151.0,0.00034129,7]
[385272551,1757723439333,-2166.693729,0.00034129,7]
[385272552,1757723439342,-151.0,0.00034129,7]
[385272553,1757723439352,-151.0,0.00034129,7]
[385272554,1757723439361,-2166.693729,0.00034129,7]
[385272555,1757723439371,-2166.693729,0.00034129,7]
[385272556,1757723439380,-151.0,0.00034129,7]
[385272557,1757723439390,-151.0,0.00034129,7]
[385272558,1757723439399,-151.0,0.00034129,7]
[385272559,1757723439408,-2166.693729,0.00034129,7]
[385272560,1757723439418,-2166.693729,0.00034129,7]
[385272561,1757723439430,-2166.693725,0.00034129,7]
[385272562,1757723439439,-151.0,0.00034129,7]
[385272563,1757723439448,-151.0,0.00034129,7]
[385272564,1757723439457,-151.0,0.00034129,7]
[385272568,1757723439466,-151.0,0.00034129,7]
[385272569,1757723439679,-151.0,0.00034129,7]
[385272570,1757723439689,-151.0,0.00034129,7]
[385272571,1757723439698,-151.0,0.00034129,7]
[385272572,1757723439707,-151.0,0.00034129,7]
[385272573,1757723439716,-259.137886,0.00034129,7]
[385272574,1757723439725,-151.0,0.00034129,7]
[385272575,1757723439735,-231.128668,0.00034129,7]
[385272576,1757723439744,-259.137886,0.00034129,7]
[385272577,1757723439753,-151.0,0.00034129,7]
[385272578,1757723439762,-259.137886,0.00034129,7]